bitfinex/quotes_SOLUSD_20250722
["timestamp","ask_amount","ask_price","bid_price","bid_amount"]
[1753205424071,5.63591092,201.78,201.73,14.89895529]
[1753205424259,4.95591092,201.78,201.73,14.89895529]
[1753205424573,0.68,201.78,201.73,31.68363926]
[1753205425070,26.0,201.76,201.73,31.68363926]
[1753205425243,26.0,201.76,201.74,14.89895529]
[1753205425443,52.49895529,201.81,201.73,14.89895529]
[1753205425444,14.89895529,201.8,201.73,14.89895529]
[1753205425644,26.0,201.74,201.71,36.92]
[1753205425844,4.95491031,201.82,201.73,61.39363926]
[1753205426064,19.8538656,201.82,201.76,14.89895529]
[1753205426370,15.57895529,201.84,201.77,31.68363926]
[1753205426569,21.29995529,201.88,201.82,14.89895529]
[1753205426748,4.95343768,201.88,201.82,14.89895529]
[1753205426946,40.89895529,201.86,201.79,14.89895529]
[1753205427169,41.57895529,201.85,201.79,14.89895529]
[1753205427472,41.57895529,201.85,201.78,53.70468397]
[1753205427473,41.57895529,201.85,201.78,68.60363926]
[1753205427643,41.57895529,201.85,201.79,14.89895529]
[1753205427850,26.68,201.85,201.79,14.89895529]
[1753205428067,4.95441934,201.84,201.79,14.89895529]
[1753205428240,5.63441934,201.84,201.79,14.89895529]
[1753205428666,5.63441934,201.84,201.78,16.78468397]
[1753205428667,0.68,201.83,201.78,14.89895529]
[1753205428867,0.68,201.82,201.77,66.63]
[1753205429073,14.89895529,201.8,201.75,16.78468397]
[1753205429253,26.68,201.81,201.75,31.68363926]
[1753205429450,41.57895529,201.81,201.75,16.78468397]
[1753205429756,41.57895529,201.81,201.76,14.89895529]
[1753205429757,26.68,201.81,201.76,14.89895529]
[1753205430148,14.89895529,201.77,201.72,16.78468397]
[1753205430462,26.0,201.77,201.72,31.68363926]
[1753205430664,26.68,201.77,201.71,44.60895529]
[1753205430874,26.68,201.77,201.72,14.89895529]
[1753205431242,26.0,201.77,201.73,14.89895529]
[1753205431447,26.0,201.77,201.72,31.68363926]
[1753205432063,4.95638382,201.76,201.72,14.89895529]
[1753205432264,4.95638382,201.76,201.71,29.71]
[1753205432265,0.68,201.75,201.71,29.71]
[1753205432450,0.68,201.74,201.69,0.03]
[1753205433273,26.68,201.73,201.69,0.03]
[1753205433442,26.0,201.73,201.69,0.03]
[1753205433646,26.68,201.73,201.69,0.03]
[1753205434084,4.95736664,201.72,201.69,0.03]
[1753205434688,26.0,201.66,201.65,0.03]
[1753205434843,72.82728479,201.66,201.65,0.03]
[1753205435045,26.68,201.66,201.65,0.03]
[1753205435252,26.0,201.66,201.65,0.03]
[1753205435452,36.58728479,201.66,201.65,0.03]
[1753205435770,36.58728479,201.66,201.6,0.1]
[1753205435951,9.90728479,201.61,201.6,0.1]
[1753205436269,14.86735621,201.61,201.6,0.1]
[1753205436446,15.54735621,201.61,201.6,0.1]
[1753205436968,5.64007142,201.61,201.6,0.1]
[1753205437277,20.60840289,201.61,201.6,0.1]
[1753205439386,4.95810402,201.69,201.6,0.1]
[1753205439552,14.96833147,201.63,201.6,0.1]
[1753205439748,40.96833147,201.61,201.6,0.1]
[1753205439976,41.11049304,201.61,201.6,0.1]
[1753205440281,0.68,201.64,201.6,0.1]
[1753205440580,36.92,201.66,201.62,14.96833147]
[1753205440755,36.92,201.66,201.6,0.1]
[1753205440756,0.68,201.7,201.64,14.96833147]
[1753205440957,0.68,201.7,201.65,14.96833147]
[1753205441273,36.92,201.71,201.67,14.96833147]
[1753205441984,0.68,201.73,201.68,14.96833147]
[1753205442163,26.0,201.73,201.7,14.96833147]
[1753205442368,26.0,201.73,201.69,14.96833147]
[1753205442881,57.52491366,201.76,201.7,14.96833147]
[1753205443065,37.6,201.76,201.71,14.96833147]
[1753205443259,62.92,201.76,201.72,14.96833147]
[1753205443589,41.87638884,201.76,201.72,14.96833147]
[1753205443882,67.87648631,201.76,201.72,14.96833147]
[1753205444296,4.95648631,201.76,201.72,14.96833147]
[1753205444670,26.0,201.75,201.72,14.96833147]
[1753205444863,26.0,201.75,201.71,14.96833147]
[1753205445067,41.64833147,201.74,201.69,29.71]
[1753205445280,15.64833147,201.73,201.67,31.75301544]
[1753205445592,0.68,201.73,201.67,31.75301544]
[1753205445888,40.96833147,201.71,201.65,14.96833147]
[1753205446428,26.0,201.7,201.68,14.96833147]
[1753205446590,4.95689989,201.74,201.69,14.96833147]
[1753205446892,26.0,201.72,201.7,14.96833147]
[1753205447262,26.0,201.72,201.67,46.49468397]
[1753205447464,26.0,201.72,201.7,14.96833147]
[1753205447691,62.92,201.75,201.71,14.96833147]
[1753205447896,0.06,201.77,201.74,14.96833147]
[1753205448077,0.06,201.77,201.76,14.96833147]
[1753205448278,0.06,201.77,201.75,14.96833147]
[1753205448467,0.06,201.77,201.76,14.96833147]
[1753205448784,0.06,201.77,201.76,61.60517701]
[1753205449085,0.06,201.77,201.76,61.46301544]
[1753205449672,0.06,201.77,201.76,46.49468397]
[1753205449878,0.06,201.77,201.73,14.96833147]
[1753205450218,0.06,201.77,201.74,14.96833147]
[1753205450416,26.06,201.77,201.72,14.96833147]
[1753205450581,26.06,201.77,201.69,29.71]
[1753205450582,0.71,201.76,201.7,31.75301544]
[1753205450782,0.71,201.76,201.72,14.96833147]
[1753205450982,0.71,201.76,201.7,14.96833147]
[1753205451424,0.71,201.76,201.66,0.21]
[1753205451610,0.71,201.76,201.6,0.1]
[1753205451611,26.0,201.69,201.6,0.1]
[1753205451914,26.0,201.66,201.63,14.96833147]
[1753205452292,26.0,201.66,201.6,16.88468397]
[1753205452492,4.95884161,201.66,201.63,14.96833147]
[1753205452986,4.95884161,201.66,201.6,46.59468397]
[1753205452987,4.95884161,201.66,201.64,14.96833147]
[1753205453188,4.95884161,201.66,201.63,14.96833147]
[1753205453384,30.95884161,201.66,201.62,14.96833147]
[1753205453583,26.0,201.66,201.64,14.96833147]
[1753205453783,0.71,201.65,201.6,15.06833147]
[1753205454116,58.3235094,201.67,201.6,15.06833147]
[1753205454788,45.92702009,201.67,201.6,15.06833147]
[1753205454990,30.95868862,201.67,201.61,14.96833147]
[1753205455188,30.95868862,201.67,201.6,0.1]
[1753205455189,30.95868862,201.67,201.63,14.96833147]
[1753205456017,4.95868862,201.67,201.64,14.96833147]
[1753205456392,6.0321,201.74,201.66,31.75301544]
[1753205456608,4.9571209,201.73,201.69,14.96833147]
[1753205456788,26.0,201.72,201.69,14.96833147]
[1753205457122,4.9571209,201.73,201.69,14.96833147]
[1753205457309,0.06,201.7,201.69,14.96833147]
[1753205457488,0.06,201.7,201.69,31.75301544]
[1753205457896,0.06,201.7,201.69,98.73517701]
[1753205458116,0.06,201.7,201.69,154.93517701]
[1753205458303,0.06,201.7,201.69,118.01517701]
[1753205458508,0.06,201.7,201.69,154.93517701]
[1753205458816,0.06,201.7,201.66,4.941]
[1753205458817,0.06,201.7,201.68,14.96833147]
[1753205459012,0.06,201.7,201.69,31.75301544]
[1753205459822,0.06,201.7,201.69,68.67301544]
[1753205460306,0.06,201.7,201.65,29.71]
[1753205460511,26.06,201.7,201.67,31.75301544]
[1753205460726,0.06,201.7,201.69,31.75301544]
[1753205461326,0.06,201.7,201.68,14.96833147]
[1753205461500,0.06,201.7,201.68,36.92]
[1753205461830,15.67833147,201.69,201.62,51.88833147]
[1753205462010,0.71,201.69,201.64,14.96833147]
[1753205462407,0.71,201.68,201.63,16.78468397]
[1753205462628,4.95859572,201.67,201.63,31.75301544]
[1753205462928,26.0,201.66,201.62,16.78468397]
[1753205463232,26.71,201.66,201.62,16.78468397]
[1753205463801,26.71,201.66,201.61,51.88833147]
[1753205464003,26.71,201.66,201.6,15.06833147]
[1753205464228,26.0,201.66,201.6,16.88468397]
[1753205464409,14.96833147,201.65,201.6,16.88468397]
[1753205464607,4.95933346,201.64,201.6,0.1]
[1753205464807,31.66933346,201.64,201.6,56.3]
[1753205465505,0.71,201.63,201.61,16.78468397]
[1753205465703,36.62521509,201.67,201.61,26.69989906]
[1753205466123,26.0,201.67,201.63,9.91521509]
[1753205466326,26.0,201.67,201.62,46.83521509]
[1753205466510,10.62521509,201.66,201.62,36.92]
[1753205466708,4.95908752,201.65,201.62,36.92]
[1753205467432,5.66908752,201.65,201.62,36.92]
[1753205467635,5.66908752,201.65,201.61,56.2]
[1753205467636,0.71,201.64,201.61,56.2]
[1753205467815,35.91521509,201.62,201.6,0.1]
[1753205468012,10.62521509,201.61,201.6,0.1]
[1753205468729,15.58528651,201.61,201.6,0.1]
[1753205469443,21.74348651,201.61,201.6,1e-08]
[1753205469617,0.14216157,201.57,201.53,0.1]
[1753205469813,35.91521509,201.48,201.47,0.1]
[1753205470022,36.62521509,201.48,201.41,30.0]
[1753205470225,35.91521509,201.45,201.41,30.0]
[1753205470438,9.91521509,201.42,201.41,30.0]
[1753205470604,9.91521509,201.42,201.32,36.92]
[1753205470605,4.96573641,201.38,201.27,0.03]
[1753205470802,26.0,201.34,201.29,9.91521509]
[1753205471003,35.91521509,201.34,201.27,0.03]
[1753205471232,15.01156391,201.31,201.27,0.03]
[1753205471431,41.72156391,201.34,201.27,0.03]
[1753205471615,26.0,201.3,201.27,0.03]
[1753205472613,26.0,201.3,201.27,30.03]
[1753205473029,0.71,201.37,201.29,15.01156391]
[1753205473336,0.71,201.37,201.27,51.98156391]
[1753205473337,41.01156391,201.33,201.27,51.98156391]
[1753205473539,15.01156391,201.28,201.27,0.03]
[1753205473915,15.72156391,201.28,201.27,0.03]
[1753205474457,15.72156391,201.28,201.23,0.03]
[1753205474458,0.14216157,201.27,201.23,0.03]
[1753205474621,4.96943795,201.23,201.18,0.03]
[1753205474945,0.14216157,201.27,201.18,0.03]
[1753205474946,63.65,201.22,201.18,0.03]
[1753205475126,26.0,201.21,201.18,0.03]
[1753205475333,62.94,201.24,201.2,16.78468397]
[1753205475552,26.0,201.24,201.2,31.79624788]
[1753205475734,77.95156391,201.27,201.21,15.01156391]
[1753205475921,15.01156391,201.23,201.19,30.03]
[1753205476123,15.72156391,201.22,201.19,30.03]
[1753205476824,0.71,201.22,201.19,30.03]
[1753205477245,26.0,201.25,201.22,16.78468397]
[1753205477432,26.0,201.25,201.2,15.01156391]
[1753205477640,36.94,201.28,201.21,31.79624788]
[1753205477944,15.01156391,201.28,201.22,15.01156391]
[1753205478142,41.69156391,201.29,201.23,15.01156391]
[1753205478354,26.0,201.27,201.23,15.01156391]
[1753205478537,26.0,201.27,201.2,16.78468397]
[1753205478538,0.68,201.29,201.24,31.79624788]
[1753205478853,0.68,201.34,201.29,4.96795667]
[1753205479032,0.68,201.34,201.29,19.97952058]
[1753205479428,62.96,201.35,201.29,19.97952058]
[1753205479623,36.96,201.35,201.3,15.01156391]
[1753205479824,37.64,201.35,201.31,15.01156391]
[1753205480023,15.01156391,201.36,201.31,15.01156391]
[1753205480320,15.01156391,201.36,201.3,16.78468397]
[1753205480321,36.96,201.38,201.33,15.01156391]
[1753205480520,15.01156391,201.36,201.3,31.79624788]
[1753205480749,0.68,201.37,201.32,15.01156391]
[1753205480930,0.68,201.37,201.33,4.96696965]
[1753205481235,77.97156391,201.38,201.34,31.79624788]
[1753205481236,36.96,201.38,201.34,31.79624788]
[1753205481420,15.01156391,201.39,201.34,16.78468397]
[1753205481622,0.68,201.38,201.34,16.78468397]
[1753205481817,51.97156391,201.41,201.35,15.01156391]
[1753205482043,15.01156391,201.41,201.35,15.01156391]
[1753205482323,15.01156391,201.41,201.35,31.79624788]
[1753205483038,15.01156391,201.41,201.35,36.76257565]
[1753205483358,41.69156391,201.42,201.36,15.01156391]
[1753205483729,26.68,201.42,201.37,15.01156391]
[1753205484048,0.68,201.41,201.35,31.79624788]
[1753205484249,41.01156391,201.42,201.35,31.79624788]
[1753205484250,26.0,201.42,201.4,16.78468397]
[1753205484454,37.64,201.44,201.4,16.78468397]
[1753205484631,0.68,201.44,201.4,31.79624788]
[1753205484947,0.68,201.43,201.39,16.78468397]
[1753205485857,0.68,201.43,201.39,21.75017147]
[1753205486150,0.68,201.43,201.39,36.76173538]
[1753205486151,26.68,201.43,201.39,36.76173538]
[1753205486360,44.0158,201.47,201.4,15.01156391]
[1753205486526,37.64,201.47,201.42,15.01156391]
[1753205486730,37.64,201.47,201.39,21.75017147]
[1753205486731,15.69156391,201.5,201.45,16.78468397]
[1753205487053,15.01156391,201.5,201.44,15.01156391]
[1753205487242,41.69156391,201.49,201.43,15.01156391]
[1753205487556,15.69156391,201.49,201.43,15.01156391]
[1753205487768,43.57834496,201.53,201.4,16.78468397]
[1753205487769,15.01156391,201.44,201.4,16.78468397]
[1753205487968,15.01156391,201.44,201.39,56.2]
[1753205487969,0.68,201.43,201.39,16.78468397]
[1753205488133,0.68,201.43,201.39,31.79624788]
[1753205489146,0.68,201.43,201.39,36.76158041]
[1753205489566,26.0,201.45,201.4,15.01156391]
[1753205489744,26.0,201.45,201.42,15.01156391]
[1753205490068,26.0,201.45,201.4,15.01156391]
[1753205490255,15.69156391,201.47,201.42,16.78468397]
[1753205490764,36.96,201.48,201.44,16.78468397]
[1753205490974,36.96,201.48,201.44,15.01156391]
[1753205491277,9.92959762,201.46,201.39,56.2]
[1753205491567,9.92959762,201.46,201.4,63.67428159]
[1753205491864,0.68,201.47,201.4,63.67428159]
[1753205491865,10.60959762,201.47,201.42,16.78468397]
[1753205492162,0.68,201.47,201.42,26.71428159]
[1753205492365,9.92959762,201.48,201.43,16.78468397]
[1753205492561,26.0,201.48,201.43,26.71428159]
[1753205492857,36.60959762,201.48,201.42,26.71428159]
[1753205493257,36.60959762,201.48,201.43,4.96450379]
[1753205493439,26.68,201.48,201.43,14.89410141]
[1753205493950,26.0,201.47,201.43,14.89410141]
[1753205494148,0.68,201.48,201.43,14.89410141]
[1753205494357,26.0,201.49,201.44,9.92959762]
[1753205494566,9.92959762,201.47,201.43,16.78468397]
[1753205494866,10.60959762,201.48,201.43,16.78468397]
[1753205495237,9.92959762,201.44,201.36,16.78468397]
[1753205495442,9.92959762,201.43,201.38,16.78468397]
[1753205495660,9.92959762,201.43,201.37,9.92959762]
[1753205495863,0.68,201.42,201.36,9.92959762]
[1753205496064,26.0,201.43,201.38,9.92959762]
[1753205496451,26.68,201.43,201.38,9.92959762]
[1753205496646,9.92959762,201.4,201.3,56.7]
[1753205496955,26.0,201.42,201.34,9.92959762]
[1753205497152,26.0,201.45,201.39,14.89490926]
[1753205497458,9.92959762,201.49,201.43,26.71428159]
[1753205497661,10.60959762,201.5,201.44,9.92959762]
[1753205497970,0.68,201.5,201.44,9.92959762]
[1753205498271,36.60959762,201.5,201.44,9.92959762]
[1753205498453,10.60959762,201.5,201.44,9.92959762]
[1753205499013,10.60959762,201.54,201.48,9.92959762]
[1753205499152,0.06,201.51,201.48,9.92959762]
[1753205499468,35.92959762,201.5,201.4,85.91]
[1753205499672,10.60959762,201.49,201.43,16.78468397]
[1753205500051,0.68,201.49,201.43,26.71428159]
[1753205500576,9.92959762,201.46,201.41,16.78468397]
[1753205500777,9.92959762,201.46,201.39,16.78468397]
[1753205500778,9.92959762,201.44,201.39,16.78468397]
[1753205500966,9.92959762,201.44,201.38,46.86959762]
[1753205501163,9.92959762,201.44,201.31,16.78468397]
[1753205501164,9.92959762,201.41,201.31,16.78468397]
[1753205501479,14.89484091,201.4,201.33,9.92959762]
[1753205501662,35.92959762,201.39,201.32,36.94]
[1753205501864,36.60959762,201.39,201.32,46.86959762]
[1753205502178,9.92959762,201.38,201.33,16.78468397]
[1753205502579,10.60959762,201.38,201.33,16.78468397]
[1753205502783,35.92959762,201.39,201.33,26.71428159]
[1753205503170,9.92959762,201.38,201.33,16.78468397]
[1753205503363,9.92959762,201.38,201.33,21.75143716]
[1753205503581,35.92959762,201.39,201.33,21.75143716]
[1753205503778,35.92959762,201.39,201.33,16.78468397]
[1753205503974,0.68,201.44,201.38,9.92959762]
[1753205504181,0.06,201.46,201.41,26.71428159]
[1753205504382,0.06,201.46,201.43,9.92959762]
[1753205504684,0.06,201.46,201.42,9.92959762]
[1753205505201,0.74,201.46,201.39,16.78468397]
[1753205505371,0.74,201.46,201.41,19.95167517]
[1753205505568,0.74,201.46,201.42,14.98671407]
[1753205505569,0.06,201.46,201.42,14.98671407]
[1753205506068,0.06,201.46,201.39,83.48468397]
[1753205506298,41.66671407,201.45,201.39,61.53139804]
[1753205506668,41.66671407,201.45,201.39,16.78468397]
[1753205506875,26.68,201.45,201.4,14.98671407]
[1753205507082,26.0,201.45,201.4,14.98671407]
[1753205507283,0.68,201.44,201.4,14.98671407]
[1753205507781,14.98671407,201.42,201.32,4.96721637]
[1753205507981,0.66,201.43,201.33,16.78468397]
[1753205507982,14.98671407,201.38,201.33,16.78468397]
[1753205508185,15.64671407,201.38,201.33,16.78468397]
[1753205508980,0.66,201.38,201.33,19.95344342]
[1753205509695,14.98671407,201.41,201.36,16.78468397]
[1753205509900,15.64671407,201.4,201.35,16.78468397]
[1753205510203,0.66,201.4,201.35,31.77139804]
[1753205511514,14.98671407,201.37,201.32,16.78468397]
[1753205511807,0.66,201.37,201.32,31.77139804]
[1753205512000,14.98671407,201.34,201.26,12.42153486]
[1753205512196,14.98671407,201.33,201.27,14.98671407]
[1753205512371,0.66,201.32,201.26,73.66009524]
[1753205512575,6.5669,201.39,201.3,14.98671407]
[1753205512576,15.64671407,201.37,201.3,14.98671407]
[1753205512775,40.98671407,201.36,201.29,31.77139804]
[1753205512999,14.98671407,201.35,201.29,31.77139804]
[1753205513306,14.98671407,201.34,201.29,16.78468397]
[1753205513809,15.64671407,201.34,201.29,16.78468397]
[1753205513998,20.61354894,201.34,201.29,16.78468397]
[1753205514299,20.61354894,201.34,201.26,36.92]
[1753205514300,14.98671407,201.31,201.26,36.92]
[1753205514498,14.98671407,201.27,201.22,29.79]
[1753205514706,15.64671407,201.26,201.22,29.79]
[1753205514873,15.64671407,201.25,201.22,0.03]
[1753205515074,14.98671407,201.24,201.22,0.03]
[1753205515277,0.66,201.24,201.22,0.03]
[1753205515484,26.0,201.27,201.22,0.03]
[1753205515806,26.0,201.27,201.23,14.98671407]
[1753205516112,14.98671407,201.26,201.22,0.03]
[1753205516397,0.66,201.26,201.22,0.03]
[1753205516578,26.0,201.27,201.22,15.01671407]
[1753205516780,40.98671407,201.27,201.22,0.03]
[1753205517196,15.64671407,201.31,201.26,16.78468397]
[1753205517399,14.98671407,201.31,201.26,16.78468397]
[1753205517700,14.98671407,201.31,201.26,21.75315317]
[1753205517902,14.98671407,201.29,201.22,16.81468397]
[1753205518211,14.98671407,201.29,201.24,16.78468397]
[1753205518384,14.98671407,201.29,201.23,56.89611744]
[1753205519029,14.98671407,201.25,201.22,0.03]
[1753205519583,14.98671407,201.26,201.22,0.03]
[1753205519795,14.98671407,201.23,201.22,0.03]
[1753205520191,15.64671407,201.23,201.22,0.03]
[1753205520396,0.66,201.33,201.23,16.78468397]
[1753205520700,1.5252,201.36,201.28,16.78468397]
[1753205520701,0.66,201.36,201.28,16.78468397]
[1753205520903,0.66,201.4,201.34,31.77139804]
[1753205521081,0.66,201.4,201.35,14.98671407]
[1753205521279,15.64671407,201.4,201.34,16.78468397]
[1753205521480,43.43025254,201.41,201.26,56.2]
[1753205521481,14.98671407,201.35,201.26,56.2]
[1753205521679,14.98671407,201.29,201.22,19.9863595]
[1753205521985,30.96746311,201.31,201.25,16.78468397]
[1753205521986,40.98671407,201.31,201.25,16.78468397]
[1753205522213,14.98671407,201.28,201.22,15.01671407]
[1753205522480,14.98671407,201.24,201.22,0.03]
[1753205522680,14.98671407,201.23,201.22,0.03]
[1753205522902,15.64671407,201.23,201.22,0.03]
[1753205523494,26.0,201.2,201.19,0.03]
[1753205523703,82.89689299,201.2,201.19,0.03]
[1753205523891,83.55689299,201.2,201.19,0.03]
[1753205524196,68.57017892,201.2,201.19,0.03]
[1753205524406,83.55689299,201.2,201.19,0.03]
[1753205525109,63.6,201.2,201.19,0.03]
[1753205525335,9.96141636,201.22,201.19,0.03]
[1753205525540,46.88141636,201.23,201.19,0.03]
[1753205526045,9.96141636,201.2,201.19,0.03]
[1753205526221,35.96141636,201.2,201.19,0.03]
[1753205526428,36.94,201.23,201.19,0.03]
[1753205526827,46.90141636,201.23,201.19,0.03]
[1753205527139,10.62141636,201.22,201.19,0.03]
[1753205527434,0.66,201.22,201.19,0.03]
[1753205527607,46.90141636,201.23,201.19,0.03]
[1753205527812,35.96141636,201.2,201.19,0.03]
[1753205528230,36.62141636,201.2,201.19,0.03]
[1753205528811,36.62141636,201.2,201.18,0.03]
[1753205529108,59.3202522,201.19,201.18,0.03]
[1753205529310,59.3202522,201.19,201.18,1e-08]
[1753205529513,0.14216157,201.18,201.17,0.03]
[1753205529739,20.81112522,201.18,201.17,0.03]
[1753205530109,5.63067302,201.18,201.17,0.03]
[1753205530313,20.66896365,201.18,201.17,0.03]
[1753205530744,5.63067302,201.18,201.17,0.03]
[1753205531039,20.66896365,201.18,201.17,0.03]
[1753205531242,57.60896365,201.18,201.17,0.03]
[1753205533018,42.57067302,201.18,201.17,0.03]
[1753205533219,57.60896365,201.18,201.17,0.03]
[1753205534841,57.60896365,201.18,201.17,27.8]
[1753205535352,0.66,201.21,201.17,27.8]
[1753205535520,51.97829063,201.2,201.17,27.8]
[1753205535914,20.00896365,201.18,201.17,27.8]
[1753205536147,20.66896365,201.18,201.17,27.8]
[1753205536452,20.66896365,201.18,201.13,0.03]
[1753205536453,26.0,201.15,201.13,0.03]
[1753205536616,51.97829063,201.14,201.13,0.03]
[1753205536824,52.63829063,201.14,201.13,0.03]
[1753205538047,57.60995215,201.14,201.13,0.03]
[1753205539348,0.14216157,201.13,200.97,5.50580002]
[1753205539550,15.03829063,201.05,200.98,15.03829063]
[1753205539726,36.94,201.04,200.98,15.03829063]
[1753205539922,15.03829063,201.03,200.97,15.56829063]
[1753205540128,15.03829063,201.03,200.97,20.54411503]
[1753205540348,41.91418383,201.04,200.99,15.03829063]
[1753205540728,56.95247446,201.04,200.98,15.03829063]
[1753205541049,15.03829063,201.03,200.97,15.03829063]
[1753205541848,41.91418383,201.04,200.97,15.03829063]
[1753205542053,20.012704,201.03,200.96,20.15565166]
[1753205542356,41.05780764,201.14,200.99,15.03829063]
[1753205542558,15.03829063,201.1,201.04,15.06829063]
[1753205542742,15.03829063,201.1,201.04,0.03]
[1753205542743,36.94,201.09,201.04,0.03]
[1753205542934,15.03829063,201.08,201.04,0.03]
[1753205543136,15.03829063,201.06,201.04,0.03]
[1753205543337,51.97829063,201.05,201.04,0.03]
[1753205543542,52.64829063,201.05,201.04,0.03]
[1753205544143,57.62217772,201.05,201.04,0.03]
[1753205544936,57.62217772,201.05,201.04,1e-08]
[1753205545137,59.33323929,201.05,201.04,1e-08]
[1753205545540,7.21278709,201.05,201.04,1e-08]
[1753205545734,83.62217772,201.05,201.04,1e-08]
[1753205545934,46.68217772,201.05,201.04,1e-08]
[1753205546134,20.01217772,201.05,201.04,1e-08]
[1753205546351,57.62217772,201.05,201.04,1e-08]
[1753205546658,38.43322166,201.08,201.04,1e-08]
[1753205546659,4.97364437,201.06,201.04,1e-08]
[1753205546838,62.94,201.05,201.04,1e-08]
[1753205547039,77.97829063,201.05,201.04,1e-08]
[1753205547239,78.64829063,201.05,201.04,1e-08]
[1753205548135,83.62217772,201.05,201.04,1e-08]
[1753205549261,78.70550117,201.05,201.04,1e-08]
[1753205550333,138.94173833,201.05,200.99,0.03]
[1753205550534,9.97945251,201.0,200.99,1e-08]
[1753205550733,46.93945251,201.0,200.99,1e-08]
[1753205550935,6.5755,200.96,200.8,4.98007968]
[1753205551138,26.0,200.89,200.79,9.97945251]
[1753205551457,9.97945251,200.85,200.76,34.74102996]
[1753205551658,46.91945251,200.84,200.78,9.97945251]
[1753205551961,36.94,200.83,200.77,0.04353203]
[1753205552164,1.565,200.89,200.79,9.97945251]
[1753205552331,1.565,200.89,200.77,0.04353203]
[1753205552332,9.97945251,200.84,200.78,9.97945251]
[1753205552534,36.94,200.83,200.78,9.97945251]
[1753205552740,30.97809637,200.88,200.81,9.97945251]
[1753205552946,36.94,200.87,200.79,0.53]
[1753205553141,36.94,200.87,200.81,9.97945251]
[1753205553442,36.94,200.86,200.82,9.97945251]
[1753205553641,36.94,200.86,200.8,0.53]
[1753205554258,0.67,200.97,200.86,4.97859205]
[1753205554468,9.97945251,200.97,200.91,9.97945251]
[1753205554652,9.97945251,200.97,200.87,17.31468397]
[1753205554967,9.97945251,200.97,200.91,9.97945251]
[1753205555550,51.91508166,200.98,200.89,0.53]
[1753205555769,51.91508166,200.98,200.92,9.97945251]
[1753205555963,9.97945251,200.95,200.88,9.97945251]
[1753205556164,46.93945251,200.95,200.88,9.97945251]
[1753205556363,46.93945251,200.95,200.89,9.97945251]
[1753205556586,36.96,200.95,200.9,9.97945251]
[1753205557064,10.64945251,200.94,200.85,28.9106164]
[1753205557266,15.06989318,200.93,200.87,15.06989318]
[1753205557876,15.06989318,200.91,200.82,35.26955043]
[1753205558077,57.00699849,200.92,200.86,15.06989318]
[1753205558264,57.00699849,200.92,200.82,35.26955043]
[1753205558265,36.96,200.92,200.88,15.06989318]
[1753205558463,15.06989318,200.97,200.91,15.06989318]
[1753205558670,17.6671225,201.04,200.89,0.53]
[1753205558671,42.5597,201.06,200.95,15.06989318]
[1753205558976,26.13323519,201.06,201.0,15.06989318]
[1753205559179,36.96,201.04,201.01,15.06989318]
[1753205559350,20.04279994,201.09,201.03,15.06989318]
[1753205559550,4.97273992,201.1,201.05,15.06989318]
[1753205559782,4.97273992,201.1,201.02,0.53]
[1753205559783,41.93291131,201.09,201.03,4.97423013]
[1753205559988,36.96,201.09,201.05,15.06989318]
[1753205560172,36.96,201.09,201.02,5.50462104]
[1753205560351,36.96,201.13,201.08,15.06989318]
[1753205560551,36.96,201.13,201.1,15.06989318]
[1753205560748,4.97117548,201.16,201.06,16.78468397]
[1753205560954,15.06989318,201.14,201.08,15.06989318]
[1753205561187,0.67,201.15,201.1,15.06989318]
[1753205561361,57.00106866,201.16,201.1,15.06989318]
[1753205561558,41.93117548,201.16,201.06,0.53]
[1753205561882,41.93117548,201.16,201.02,0.53]
[1753205561883,15.06989318,201.1,201.02,0.53]
[1753205562077,15.06989318,201.09,200.99,5.50513082]
[1753205562375,36.96,201.11,201.0,0.53]
[1753205562376,15.06989318,201.1,201.0,0.53]
[1753205562578,17.39909355,201.16,201.09,15.06989318]
[1753205562579,4.97117548,201.16,201.09,15.06989318]